bitfinex/quotes_SOLUSD_20241213
["timestamp","ask_amount","ask_price","bid_price","bid_amount"]
[1734100817729,13.13316858,224.16,224.1,13.13316858]
[1734100817940,13.13316858,224.16,224.05,1.5889]
[1734100817941,13.13316858,224.16,224.09,13.13316858]
[1734100818148,13.13316858,224.14,224.07,13.13316858]
[1734100818604,13.13316858,224.15,224.08,13.13316858]
[1734100819204,13.13316858,224.15,224.09,13.13316858]
[1734100819634,13.13316858,224.15,224.08,13.13316858]
[1734100820724,13.13316858,224.13,224.06,13.13316858]
[1734100821034,13.13316858,224.15,224.08,13.13316858]
[1734100821371,13.13316858,224.15,224.09,13.13316858]
[1734100821635,13.13316858,224.15,224.08,13.13316858]
[1734100822132,13.13316858,224.14,224.07,13.13316858]
[1734100823806,0.25098,224.16,224.07,13.13316858]
[1734100824009,13.13316858,224.14,224.07,13.13316858]
[1734100824216,0.12549,224.16,224.1,13.13316858]
[1734100824713,1.5849,224.17,224.11,13.13316858]
[1734100824918,14.71806858,224.17,224.1,13.13316858]
[1734100825125,13.13316858,224.16,224.09,13.13316858]
[1734100825601,14.71806858,224.17,224.1,13.13316858]
[1734100826511,13.13316858,224.14,224.07,13.13316858]
[1734100826721,13.13316858,224.13,224.06,13.13316858]
[1734100827042,13.13316858,224.1,224.03,13.13316858]
[1734100827244,13.13316858,224.1,224.04,1.93985829]
[1734100827555,13.13316858,224.1,224.03,13.13316858]
[1734100827753,13.13316858,224.09,224.02,13.13316858]
[1734100828823,13.13316858,224.1,224.03,13.13316858]
[1734100830326,13.13316858,224.09,224.02,13.13316858]
[1734100830630,13.13316858,224.07,224.01,13.13316858]
[1734100831012,13.13316858,224.08,224.01,13.13316858]
[1734100832465,13.13316858,224.15,224.07,13.13316858]
[1734100832744,0.12549,224.14,224.08,13.13316858]
[1734100833310,0.25098,224.14,224.08,13.13316858]
[1734100834416,13.13316858,224.13,224.06,13.13316858]
[1734100835108,13.13316858,224.12,224.01,0.66936423]
[1734100835307,13.13316858,224.12,224.05,13.13316858]
[1734100836350,13.13316858,224.12,224.01,0.66936423]
[1734100836351,13.13316858,224.11,224.04,13.13316858]
[1734100836643,13.13316858,224.11,224.0,11.1606]
[1734100836644,0.12549,224.11,224.05,13.13316858]
[1734100837249,0.25098,224.12,224.06,13.13316858]
[1734100837432,0.12549,224.12,224.06,13.13316858]
[1734100837649,13.13316858,224.12,224.05,13.13316858]
[1734100837838,13.25865858,224.11,224.04,13.13316858]
[1734100838026,0.12549,224.11,224.07,13.13316858]
[1734100838223,23.776884,224.16,224.06,13.13316858]
[1734100838224,0.12549,224.12,224.06,13.13316858]
[1734100838451,13.25865858,224.12,224.05,13.13316858]
[1734100838949,0.12549,224.12,224.07,13.13316858]
[1734100839437,13.25865858,224.13,224.06,13.13316858]
[1734100840014,0.12549,224.11,224.05,13.13316858]
[1734100840730,13.25865858,224.11,224.04,13.13316858]
[1734100840930,0.12549,224.09,224.03,13.13316858]
[1734100841311,8.54110065,224.09,224.02,8.41561065]
[1734100841536,0.12549,224.09,224.03,8.41561065]
[1734100842361,8.41561065,224.09,224.02,8.41561065]
[1734100842652,23.776884,224.14,224.05,8.41561065]
[1734100842855,23.776884,224.14,223.99,11.83041148]
[1734100842856,8.41561065,224.13,224.06,8.41561065]
[1734100843153,10.00051065,224.17,224.1,8.41561065]
[1734100843358,8.41561065,224.17,224.1,8.41561065]
[1734100844050,8.41561065,224.18,224.1,8.41561065]
[1734100844254,8.41561065,224.18,224.11,8.41561065]
[1734100844842,0.12549,224.17,224.11,8.41561065]
[1734100845224,0.25098,224.17,224.11,13.13888687]
[1734100845650,13.26437687,224.17,224.1,13.13888687]
[1734100846552,13.13888687,224.16,224.09,13.13888687]
[1734100847006,0.25098,224.15,224.09,13.13888687]
[1734100847131,13.38986687,224.15,224.08,13.13888687]
[1734100847733,0.25098,224.15,224.09,13.13888687]
[1734100847952,0.25098,224.15,224.07,0.66918369]
[1734100847953,0.12549,224.18,224.12,13.13888687]
[1734100848455,1.5069,224.21,224.15,13.13888687]
[1734100848763,0.25098,224.21,224.15,13.13888687]
[1734100848927,13.13888687,224.2,224.14,13.13888687]
[1734100849141,13.13888687,224.15,224.07,6.0829]
[1734100849451,13.13888687,224.14,224.08,1.94064855]
[1734100849947,13.13888687,224.13,224.08,1.94122482]
[1734100850327,23.902374,224.2,224.08,1.94298709]
[1734100850328,13.13888687,224.14,224.08,1.94298709]
[1734100850720,0.12549,224.14,224.08,15.08187396]
[1734100850938,0.12549,224.14,224.08,13.13888687]
[1734100851146,0.12549,224.14,224.09,13.13888687]
[1734100851527,0.25098,224.15,224.09,13.13888687]
[1734100851972,23.776884,224.2,224.1,13.13888687]
[1734100851973,13.13888687,224.17,224.1,13.13888687]
[1734100852139,13.13888687,224.17,224.11,13.13888687]
[1734100852666,13.13888687,224.21,224.15,13.13888687]
[1734100852835,13.13888687,224.22,224.15,13.13888687]
[1734100853041,0.12549,224.21,224.15,13.13888687]
[1734100853295,0.12549,224.21,224.08,0.66906449]
[1734100853296,13.13888687,224.24,224.17,13.13888687]
[1734100853549,0.12549,224.23,224.18,1.94144786]
[1734100853756,13.13888687,224.24,224.17,13.13888687]
[1734100853956,13.13888687,224.23,224.16,13.13888687]
[1734100854260,13.13888687,224.23,224.12,11.1545]
[1734100854261,13.13888687,224.24,224.17,13.13888687]
[1734100854434,0.12549,224.23,224.17,13.13888687]
[1734100855069,13.26437687,224.23,224.16,13.13888687]
[1734100855231,13.26437687,224.21,224.14,13.13888687]
[1734100855432,0.12549,224.21,224.15,13.13888687]
[1734100856564,0.25098,224.22,224.16,13.13888687]
[1734100856733,0.12549,224.23,224.17,13.13888687]
[1734100856924,13.13888687,224.26,224.19,13.13888687]
[1734100857158,13.13888687,224.29,224.22,13.13888687]
[1734100857362,13.13888687,224.3,224.23,13.13888687]
[1734100857555,11.1426,224.37,224.25,13.13888687]
[1734100857750,13.13888687,224.34,224.27,13.13888687]
[1734100857932,11.63888687,224.34,224.27,13.13888687]
[1734100858284,8.0645,224.39,224.27,13.13888687]
[1734100858436,13.13888687,224.35,224.28,13.13888687]
[1734100858631,8.0645,224.39,224.24,0.66863411]
[1734100858632,13.13888687,224.37,224.3,13.13888687]
[1734100859056,13.13888687,224.36,224.29,13.13888687]
[1734100859284,8.0645,224.39,224.27,13.13888687]
[1734100859285,13.13888687,224.34,224.27,13.13888687]
[1734100859699,13.13888687,224.35,224.28,13.13888687]
[1734100859835,13.13888687,224.34,224.28,13.13888687]
[1734100860253,13.13888687,224.35,224.28,13.13888687]
[1734100860650,13.13888687,224.34,224.27,13.13888687]
[1734100860854,0.12549,224.38,224.29,13.13888687]
[1734100860855,13.13888687,224.36,224.29,13.13888687]
[1734100861028,0.12549,224.38,224.28,13.13888687]
[1734100861029,13.13888687,224.35,224.28,13.13888687]
[1734100861344,13.13888687,224.36,224.29,13.13888687]
[1734100862062,13.13888687,224.39,224.32,13.13888687]
[1734100863449,13.13888687,224.38,224.31,13.13888687]
[1734100863970,13.13888687,224.37,224.3,13.13888687]
[1734100864188,13.13888687,224.37,224.27,14.48477421]
[1734100864189,13.13888687,224.35,224.28,13.13888687]
[1734100864368,13.13888687,224.36,224.29,13.13888687]
[1734100865077,13.13888687,224.37,224.3,13.13888687]
[1734100865549,13.13888687,224.36,224.29,13.13888687]
[1734100866575,13.13888687,224.37,224.3,13.13888687]
[1734100867916,13.13888687,224.36,224.29,13.13888687]
[1734100868051,13.13888687,224.37,224.3,13.13888687]
[1734100868969,0.25098,224.39,224.31,13.13888687]
[1734100869268,13.13888687,224.38,224.31,13.13888687]
[1734100869871,13.13888687,224.37,224.3,13.13888687]
[1734100870185,13.13888687,224.36,224.29,13.13888687]
[1734100871062,0.25098,224.39,224.3,13.13888687]
[1734100871063,13.13888687,224.37,224.3,13.13888687]
[1734100871241,13.13888687,224.38,224.31,13.13888687]
[1734100871748,13.13888687,224.37,224.3,13.13888687]
[1734100873457,13.13888687,224.36,224.28,13.13888687]
[1734100873665,13.13888687,224.34,224.27,13.13888687]
[1734100873860,13.13888687,224.31,224.24,13.13888687]
[1734100874740,13.13888687,224.32,224.25,13.13888687]
[1734100874943,13.13888687,224.34,224.27,13.13888687]
[1734100875139,13.13888687,224.35,224.28,13.13888687]
[1734100875965,13.13888687,224.32,224.25,13.13888687]
[1734100876163,13.13888687,224.32,224.24,13.13888687]
[1734100876355,13.13888687,224.3,224.23,14.77308687]
[1734100876554,13.13888687,224.29,224.22,13.13888687]
[1734100876767,13.13888687,224.28,224.21,13.13888687]
[1734100877432,13.13888687,224.3,224.22,13.13888687]
[1734100877550,13.13888687,224.3,224.23,13.13888687]
[1734100877787,0.12549,224.33,224.25,13.13888687]
[1734100878084,13.13888687,224.3,224.23,13.13888687]
[1734100878284,13.13888687,224.3,224.22,13.13888687]
[1734100878469,13.13888687,224.3,224.19,7.00221089]
[1734100878470,0.12549,224.33,224.23,13.13888687]
[1734100878674,13.13888687,224.3,224.23,13.13888687]
[1734100879081,0.12549,224.33,224.24,13.13888687]
[1734100879261,13.13888687,224.32,224.24,13.13888687]
[1734100879461,13.13888687,224.31,224.24,13.13888687]
[1734100879958,13.13888687,224.3,224.23,13.13888687]
[1734100880483,0.12549,224.33,224.23,13.13888687]
[1734100880787,13.13888687,224.3,224.23,13.13888687]
[1734100880986,13.13888687,224.28,224.21,13.13888687]
[1734100881375,13.13888687,224.27,224.2,13.13888687]
[1734100881562,13.13888687,224.27,224.19,13.13888687]
[1734100881880,13.13888687,224.27,224.2,15.06452352]
[1734100882058,13.13888687,224.27,224.2,13.13888687]
[1734100882856,13.13888687,224.25,224.18,14.67818687]
[1734100883063,13.13888687,224.24,224.16,13.13888687]
[1734100883684,13.13888687,224.21,224.14,13.13888687]
[1734100884184,13.13888687,224.19,224.12,13.13888687]
[1734100884383,13.13888687,224.17,224.13,1.9297866]
[1734100884584,13.13888687,224.16,224.11,1.9297866]
[1734100884783,13.26437687,224.18,224.1,15.06867347]
[1734100884967,13.13888687,224.17,224.11,1.9297866]
[1734100885569,23.902374,224.24,224.12,13.13888687]
[1734100885772,23.902374,224.24,224.13,15.06953499]
[1734100885773,13.13888687,224.2,224.13,15.06953499]
[1734100885966,13.13888687,224.2,224.13,13.13888687]
[1734100887088,24.027864,224.24,224.16,13.13888687]
[1734100887275,26.20137859,224.33,224.19,13.13888687]
[1734100887276,13.13888687,224.26,224.19,13.13888687]
[1734100887874,13.13888687,224.27,224.2,13.13888687]
[1734100888270,13.13888687,224.26,224.19,13.13888687]
[1734100888789,1.5592,224.38,224.25,13.13888687]
[1734100889001,13.13888687,224.32,224.25,13.13888687]
[1734100889284,13.13888687,224.33,224.26,13.13888687]
[1734100891074,13.13888687,224.32,224.25,13.13888687]
[1734100891392,13.13888687,224.32,224.26,1.92986096]
[1734100891596,13.13888687,224.3,224.23,13.13888687]
[1734100891766,13.13888687,224.3,224.24,1.93065741]
[1734100893242,13.13888687,224.29,224.24,1.93065741]
[1734100893496,13.13888687,224.29,224.23,1.93065741]
[1734100894108,13.13888687,224.27,224.23,1.93065741]
[1734100894295,13.13888687,224.27,224.21,1.93065741]
[1734100894794,11.26779,224.37,224.21,15.06954428]
[1734100894795,13.13888687,224.28,224.21,15.06954428]
[1734100894967,13.13888687,224.28,224.22,1.93065741]
[1734100895174,13.13888687,224.29,224.22,13.13888687]
[1734100895392,13.13888687,224.29,224.23,1.932871]
[1734100896111,13.13888687,224.29,224.23,1.93312222]
[1734100896370,13.13888687,224.29,224.23,1.93445071]
[1734100896610,13.13888687,224.28,224.23,1.93445071]
[1734100896782,13.13888687,224.28,224.22,1.93455103]
[1734100896988,13.13888687,224.31,224.24,13.13888687]
[1734100897299,13.13888687,224.31,224.25,1.93455103]
[1734100898595,13.13888687,224.31,224.26,1.93455103]
[1734100898903,13.13888687,224.29,224.25,1.93455103]
[1734100899076,13.13888687,224.29,224.23,1.93455103]
[1734100899274,13.13888687,224.29,224.24,1.93455103]
[1734100899578,13.13888687,224.29,224.25,1.93455103]
[1734100899671,13.13888687,224.3,224.23,15.0734379]
[1734100899874,13.13888687,224.3,224.24,1.93617524]
[1734100900903,13.13888687,224.29,224.24,1.93617524]
[1734100901102,13.13888687,224.29,224.23,1.93617524]
[1734100901287,0.12549,224.37,224.23,1.93617524]
[1734100901288,13.13888687,224.28,224.23,1.93617524]
[1734100901478,13.13888687,224.28,224.22,1.93617524]
[1734100902500,13.13888687,224.28,224.23,1.93617524]
[1734100902806,13.13888687,224.28,224.22,1.93814919]
[1734100903108,13.13888687,224.28,224.23,1.93814919]
[1734100903313,13.13888687,224.29,224.22,15.07703606]
[1734100903603,13.13888687,224.29,224.23,1.93814919]
[1734100905280,13.13888687,224.29,224.24,1.93814919]
[1734100905497,13.13888687,224.28,224.23,1.93814919]
[1734100905828,13.13888687,224.25,224.21,1.93814919]
[1734100906014,13.13888687,224.24,224.21,1.93814919]
[1734100906209,13.13888687,224.24,224.2,1.93814919]
[1734100906502,24.027864,224.28,224.2,1.93814919]
[1734100906711,24.027864,224.28,224.15,1.93814919]
[1734100906712,13.13888687,224.21,224.15,1.93814919]
[1734100906883,13.13888687,224.21,224.16,1.93814919]
[1734100907079,13.13888687,224.21,224.14,13.13888687]
[1734100907080,13.13888687,224.22,224.17,1.93814919]
[1734100907299,13.13888687,224.22,224.18,1.93814919]
[1734100907472,13.13888687,224.22,224.19,1.93814919]
[1734100907678,13.13888687,224.22,224.2,1.93814919]
[1734100907879,13.13888687,224.21,224.16,1.93814919]
[1734100908075,13.13888687,224.21,224.17,1.93814919]
[1734100908299,13.13888687,224.21,224.15,1.93814919]
[1734100908604,13.13888687,224.21,224.16,1.93814919]
[1734100908932,13.13888687,224.21,224.17,1.93814919]
[1734100909353,13.13888687,224.22,224.18,1.93814919]
[1734100909482,13.13888687,224.22,224.16,1.93814919]
[1734100909678,13.13888687,224.22,224.17,1.93814919]
[1734100909983,13.13888687,224.22,224.16,1.93814919]
[1734100910997,13.13888687,224.22,224.17,1.93814919]
[1734100911217,13.13888687,224.22,224.16,1.93814919]
[1734100911712,13.13888687,224.21,224.16,1.93814919]
[1734100911881,13.13888687,224.21,224.15,1.93814919]
[1734100912512,13.13888687,224.21,224.16,1.93814919]
[1734100912813,13.13888687,224.21,224.13,31.95708687]
[1734100912814,13.13888687,224.21,224.14,1.93814919]
[1734100913006,13.13888687,224.21,224.15,1.93814919]
[1734100913206,13.13888687,224.22,224.16,1.93814919]
[1734100913390,13.13888687,224.22,224.17,1.93814919]
[1734100913724,13.13888687,224.21,224.16,1.93814919]
[1734100913885,13.13888687,224.21,224.15,1.93814919]
[1734100914598,13.13888687,224.23,224.15,15.07703606]
[1734100914810,13.13888687,224.22,224.16,1.93814919]
[1734100915620,13.13888687,224.23,224.16,26.23057098]
[1734100915829,13.13888687,224.23,224.17,1.93898411]
[1734100916116,13.13888687,224.23,224.18,1.93898411]
[1734100916299,13.13888687,224.21,224.17,1.93898411]
[1734100916616,13.13888687,224.21,224.15,1.93898411]
[1734100916817,13.13888687,224.21,224.16,1.93898411]
[1734100917115,13.13888687,224.2,224.15,1.93898411]
[1734100917313,13.13888687,224.2,224.16,1.93898411]
[1734100917487,13.13888687,224.2,224.14,1.93898411]
[1734100918490,13.13888687,224.19,224.14,1.93898411]
[1734100918763,13.13888687,224.17,224.14,1.93898411]
[1734100919020,0.25098,224.28,224.13,1.5907]
[1734100919021,13.13888687,224.16,224.13,1.5907]
[1734100919217,8.40918916,224.16,224.13,1.5907]
[1734100919438,8.40918916,224.17,224.13,1.5907]
[1734100920605,8.40918916,224.15,224.12,1.93898411]
[1734100920817,8.40918916,224.15,224.11,1.93898411]
[1734100921041,8.40918916,224.16,224.12,1.93898411]
[1734100921205,0.12549,224.24,224.11,11.01734091]
[1734100921394,8.40918916,224.18,224.12,1.93898411]
[1734100921593,8.40918916,224.17,224.13,1.93898411]
[1734100921933,8.40918916,224.17,224.11,9.0783568]
[1734100921934,8.40918916,224.17,224.12,1.93898411]
[1734100922147,1.6305,224.29,224.16,8.40918916]
[1734100922323,8.40918916,224.26,224.19,8.40918916]
[1734100922703,8.40918916,224.25,224.18,1.93898411]
[1734100922906,8.40918916,224.25,224.18,10.34817327]
[1734100924201,8.40918916,224.26,224.19,1.93786083]
[1734100924313,8.40918916,224.26,224.18,10.34704999]
[1734100924903,8.40918916,224.26,224.19,1.93786083]
[1734100925446,13.12865045,224.27,224.2,1.93786083]
[1734100925608,13.12865045,224.29,224.21,13.12865045]
[1734100925972,13.12865045,224.29,224.22,1.93786083]
[1734100927635,13.12865045,224.27,224.22,1.93796161]
[1734100928232,13.12865045,224.29,224.22,1.93796161]
[1734100928439,13.12865045,224.27,224.23,1.5267]
[1734100928600,13.12865045,224.28,224.23,1.5267]
[1734100929321,13.12865045,224.26,224.23,1.5267]
[1734100929733,13.12865045,224.25,224.23,1.5267]
[1734100929939,13.12865045,224.26,224.23,1.5267]
[1734100930761,24.027864,224.33,224.23,1.5267]
[1734100930762,13.12865045,224.28,224.23,1.5267]
[1734100930961,13.12865045,224.27,224.23,1.5267]
[1734100931152,24.027864,224.33,224.23,1.5267]
[1734100931153,0.12549,224.33,224.23,1.5267]
[1734100931326,13.12865045,224.29,224.23,1.5267]
[1734100931531,13.12865045,224.29,224.23,3.46466161]
[1734100932055,13.12865045,224.28,224.23,3.46466161]
[1734100932254,13.12865045,224.28,224.23,1.5267]
[1734100932453,13.12865045,224.28,224.23,3.46466161]
[1734100932641,13.12865045,224.28,224.23,1.5267]
[1734100932853,13.12865045,224.28,224.23,3.46466161]
[1734100933055,13.12865045,224.28,224.23,1.5267]
[1734100933259,1.5162,224.38,224.25,13.12865045]
[1734100933423,0.5345105,224.4,224.25,13.12865045]
[1734100933804,13.12865045,224.33,224.26,15.06622838]
[1734100933934,13.12865045,224.33,224.27,1.93729225]
[1734100934563,13.12865045,224.32,224.26,1.93729225]
[1734100935223,13.12865045,224.31,224.26,1.93729225]
[1734100935424,13.12865045,224.31,224.25,1.93729225]
[1734100936468,13.12865045,224.32,224.26,1.93729225]
[1734100937268,13.12865045,224.32,224.25,13.12865045]
[1734100937328,24.027864,224.39,224.26,1.93707582]
[1734100937560,13.12865045,224.32,224.25,13.12865045]
[1734100937764,13.12865045,224.31,224.26,1.93733963]
[1734100937949,13.12865045,224.31,224.25,1.93735834]
[1734100939048,13.12865045,224.31,224.26,1.93735834]
[1734100939251,13.12865045,224.31,224.24,15.06600879]
[1734100939451,13.12865045,224.31,224.25,1.93735834]
[1734100940535,13.12865045,224.31,224.24,13.12865045]
[1734100940536,13.12865045,224.31,224.26,1.93735834]
[1734100940761,13.12865045,224.31,224.25,1.93735834]
[1734100940937,13.12865045,224.31,224.26,1.93735834]
[1734100941155,13.12865045,224.31,224.25,1.93735834]
[1734100941344,13.12865045,224.31,224.26,1.93735834]
[1734100941565,13.12865045,224.31,224.25,1.93735834]
[1734100943871,13.12865045,224.26,224.23,1.5267]
[1734100946169,13.12865045,224.26,224.2,1.93717616]
[1734100946476,13.12865045,224.26,224.19,13.12865045]
[1734100946805,13.12865045,224.26,224.21,1.93702674]
[1734100946848,0.12549,224.31,224.2,15.06567719]
[1734100947061,13.12865045,224.27,224.21,1.93702674]
[1734100947282,1.6069,224.34,224.23,8.4017164]
[1734100947565,8.4017164,224.34,224.27,8.4017164]
[1734100947737,8.4017164,224.34,224.27,9.9943164]
[1734100947946,8.4017164,224.34,224.28,1.93609208]
[1734100948344,8.4017164,224.33,224.28,1.93609208]
[1734100948544,8.4017164,224.33,224.27,3.52869208]
[1734100948765,8.4017164,224.31,224.27,3.52869208]
[1734100948954,8.4017164,224.31,224.27,1.5926]
[1734100949471,8.4017164,224.31,224.27,3.52869208]
[1734100949646,8.4017164,224.31,224.27,1.5926]
[1734100950062,24.027864,224.39,224.27,3.52746824]
[1734100950369,8.4017164,224.31,224.27,1.5926]
[1734100952157,24.027864,224.39,224.27,1.5926]
[1734100952158,8.4017164,224.29,224.27,1.5926]
[1734100952365,24.027864,224.39,224.25,1.93486824]
[1734100952366,8.4017164,224.28,224.25,1.93486824]
[1734100952658,8.4017164,224.26,224.22,1.6312]
[1734100952971,0.12549,224.35,224.23,19.5509164]
[1734100953209,8.4017164,224.3,224.24,1.9336207]
[1734100953499,8.4017164,224.28,224.25,1.9336207]
[1734100953669,8.4017164,224.27,224.24,1.9336207]
[1734100953841,8.4017164,224.27,224.23,1.9336207]
[1734100954271,44.027864,224.35,224.23,1.9336207]
[1734100954452,8.4017164,224.27,224.23,1.9336207]
[1734100954655,8.4017164,224.27,224.22,1.6312]
[1734100955067,8.4017164,224.25,224.22,1.6312]
[1734100956262,8.4017164,224.26,224.22,1.6312]
[1734100956667,8.4017164,224.29,224.22,21.1824164]
[1734100956864,8.4017164,224.29,224.23,1.93446686]
[1734100957462,8.4017164,224.28,224.23,1.93446686]
[1734100957661,8.4017164,224.26,224.23,1.93446686]
[1734100957854,8.4017164,224.26,224.22,1.6312]
[1734100958263,8.4017164,224.26,224.23,1.93446686]
[1734100958674,8.4017164,224.26,224.22,1.6312]
[1734100958977,24.027864,224.34,224.22,1.6312]
[1734100959170,8.4017164,224.27,224.22,1.6312]
[1734100959878,8.4017164,224.27,224.22,3.56505796]
[1734100960079,8.4017164,224.27,224.22,1.6312]
[1734100960283,8.4017164,224.27,224.22,3.56505796]
[1734100960481,8.4017164,224.27,224.22,1.6312]
[1734100961382,8.4017164,224.27,224.22,3.56505796]
[1734100961680,8.4017164,224.27,224.22,1.6312]
[1734100962055,8.4017164,224.27,224.22,3.56505796]
[1734100962273,8.4017164,224.27,224.22,1.6312]
[1734100962463,8.4017164,224.27,224.22,3.56505796]
[1734100962672,8.4017164,224.27,224.22,1.6312]
[1734100963084,8.4017164,224.27,224.22,3.56538021]
[1734100963276,8.4017164,224.27,224.22,1.6312]
[1734100963504,8.4017164,224.27,224.22,3.56538021]
[1734100963781,8.4017164,224.27,224.22,1.6312]
[1734100963993,8.4017164,224.27,224.22,3.56538021]
[1734100964284,8.4017164,224.27,224.23,1.93418021]
[1734100964485,8.4017164,224.27,224.24,1.93418021]
[1734100964687,8.4017164,224.27,224.23,1.93418021]
[1734100965688,8.4017164,224.27,224.24,1.93418021]
[1734100965899,8.4017164,224.27,224.23,1.93505286]
[1734100966062,8.4017164,224.27,224.24,1.93505286]
[1734100966264,8.4017164,224.27,224.23,1.93505286]
[1734100966467,8.4017164,224.27,224.22,1.6312]
[1734100966763,8.4017164,224.25,224.23,1.93635807]
[1734100966963,8.4017164,224.25,224.22,1.6312]
[1734100967178,8.4017164,224.26,224.23,1.93632586]
[1734100967388,8.4017164,224.27,224.24,1.93632586]
[1734100967589,8.4017164,224.27,224.25,1.93632586]
[1734100967787,8.4017164,224.27,224.22,1.6312]
[1734100968073,8.4017164,224.27,224.23,1.93707539]
[1734100968284,8.4017164,224.27,224.24,1.93707539]
[1734100968480,8.4017164,224.27,224.25,1.93707539]
[1734100968697,8.4017164,224.27,224.22,1.6312]
[1734100968900,8.4017164,224.27,224.23,1.93736465]
[1734100969271,8.4017164,224.27,224.24,1.93742239]
[1734100969373,8.4017164,224.26,224.25,1.93742239]
[1734100970292,8.4017164,224.26,224.23,1.93742239]
[1734100970496,2.0969105,224.4,224.24,1.93742239]
[1734100970801,2.0969105,224.4,224.25,1.93742239]
[1734100970802,8.4017164,224.29,224.25,1.93742239]
[1734100971097,35.7037761,224.4,224.26,1.93742239]
[1734100971098,8.4017164,224.28,224.26,1.93742239]
[1734100971301,8.4017164,224.29,224.23,11.1488]
[1734100971478,8.4017164,224.29,224.24,1.93700424]
[1734100971681,8.4017164,224.29,224.25,1.93700424]
[1734100971902,8.4017164,224.29,224.26,1.93700424]
[1734100972100,8.4017164,224.29,224.27,1.93700424]
[1734100972454,8.4017164,224.31,224.24,0.66874535]
[1734100972582,8.4017164,224.3,224.28,1.93659145]
[1734100972900,8.4017164,224.29,224.24,1.93687439]
[1734100973199,8.4017164,224.29,224.25,1.93687439]
[1734100973505,8.4017164,224.29,224.26,1.93687439]
[1734100973703,8.4017164,224.28,224.27,1.93687439]
[1734100973909,8.4017164,224.28,224.22,1.6312]
[1734100974197,8.4017164,224.24,224.23,1.93759511]
[1734100974588,8.4017164,224.24,224.2,1.93759511]
[1734100974796,24.027864,224.28,224.21,1.93759511]
[1734100974995,8.4017164,224.22,224.17,1.6327]
[1734100975183,8.4017164,224.2,224.18,1.93829833]
[1734100975419,8.4017164,224.2,224.19,1.93829833]
[1734100975703,8.4017164,224.2,224.19,1.93832717]
[1734100977917,8.4017164,224.2,224.18,1.93832717]
[1734100978105,8.4017164,224.2,224.19,1.93832717]
[1734100978292,8.4017164,224.21,224.18,1.93832717]
[1734100978619,8.4017164,224.21,224.17,1.6327]
[1734100978620,8.4017164,224.21,224.19,1.93646044]
[1734100978900,8.4017164,224.21,224.18,1.93659989]
[1734100978988,8.4017164,224.21,224.17,1.6327]
[1734100979319,8.4017164,224.21,224.18,1.93700774]
[1734100980009,8.4017164,224.21,224.19,1.93700774]
[1734100980310,8.4017164,224.21,224.18,1.93700774]
[1734100980521,8.4017164,224.21,224.19,1.93700774]
[1734100980691,8.4017164,224.21,224.18,1.93700774]
[1734100980891,8.4017164,224.21,224.19,1.93700774]
[1734100981259,8.4017164,224.2,224.18,1.93700774]
[1734100981406,8.4017164,224.19,224.17,1.6327]
[1734100981610,8.4017164,224.19,224.18,1.93561286]
[1734100982517,8.4017164,224.19,224.16,1.93561286]
[1734100982901,8.4017164,224.19,224.17,1.93561286]
[1734100983098,8.4017164,224.18,224.16,1.93615415]
[1734100983306,8.4017164,224.17,224.14,1.93615415]
[1734100983483,8.4017164,224.15,224.12,1.6121]
[1734100983687,8.4017164,224.15,224.13,1.93658126]
[1734100983896,24.027864,224.28,224.14,1.93658126]
[1734100984102,8.4017164,224.16,224.15,1.93658126]
[1734100984467,8.4017164,224.16,224.13,1.93658126]
[1734100984723,8.4017164,224.18,224.14,1.93658126]
[1734100984920,0.12549,224.24,224.14,8.4017164]
[1734100985106,8.4017164,224.21,224.15,1.93658126]
[1734100985308,0.12549,224.28,224.16,11.00730807]
[1734100985509,20.0,224.28,224.18,8.4017164]
[1734100985819,8.4017164,224.25,224.19,1.93658126]
[1734100986072,5.53138711,224.35,224.22,8.4017164]
[1734100986228,1.5717,224.36,224.24,8.4017164]
[1734100986525,8.4017164,224.32,224.25,11.00518851]
[1734100986695,8.4017164,224.31,224.26,1.93477458]
[1734100986890,8.4017164,224.31,224.27,1.93477458]
[1734100987117,8.4017164,224.29,224.25,1.93477458]
[1734100987324,8.4017164,224.28,224.21,10.0543164]
[1734100987627,8.4017164,224.27,224.23,20.0]
[1734100987716,8.4017164,224.25,224.22,4.61786275]
[1734100988011,8.4017164,224.27,224.23,1.93332116]
[1734100988212,8.4017164,224.28,224.24,1.93332116]
[1734100988419,8.4017164,224.28,224.25,1.93332116]
[1734100988716,8.4017164,224.28,224.23,1.93332116]
[1734100988913,8.4017164,224.28,224.24,1.93332116]
[1734100989118,8.4017164,224.3,224.23,10.33503756]
[1734100989306,8.4017164,224.31,224.24,21.48373756]
[1734100989505,8.4017164,224.31,224.25,1.93332116]
[1734100989722,8.4017164,224.31,224.26,1.93332116]
[1734100989924,8.4017164,224.31,224.27,1.93332116]
[1734100990225,8.4017164,224.31,224.24,19.5504164]
[1734100990226,8.4017164,224.31,224.25,1.93332116]
[1734100990404,8.4017164,224.31,224.26,1.93332116]
[1734100990643,8.4017164,224.31,224.27,1.93332116]
[1734100990797,8.4017164,224.32,224.25,10.33503756]